bitfinex-derivatives/quotes_ETHF0:USTF0_20250918
["timestamp","ask_amount","ask_price","bid_price","bid_amount"]
[1758181476478,0.647,4583.0,4582.9,0.2072]
[1758181476677,0.8469,4583.0,4582.9,0.2072]
[1758181478281,0.8469,4583.0,4582.9,0.4168]
[1758181478486,0.3412,4583.5,4583.4,0.2072]
[1758181478688,1.04782939,4583.5,4583.4,1.71655212]
[1758181479085,1.35732939,4583.5,4583.4,1.71655212]
[1758181479488,1.13832939,4583.5,4583.4,1.71655212]
[1758181479689,1.13832939,4583.5,4583.4,0.6658]
[1758181480385,1.13832939,4583.5,4583.4,1.71655212]
[1758181481187,1.13832939,4583.5,4583.4,0.6658]
[1758181481879,0.1243,4583.0,4582.9,0.6658]
[1758181482186,0.8469,4583.0,4582.9,1.46755212]
[1758181482692,0.8469,4583.0,4582.9,1.71655212]
[1758181483991,0.8469,4583.0,4582.9,0.4168]
[1758181484290,0.8469,4583.0,4582.9,1.46755212]
[1758181488789,0.8469,4583.0,4582.9,1.71655212]
[1758181490793,0.8469,4583.0,4582.9,1.46755212]
[1758181491190,0.8469,4583.0,4582.9,1.71655212]
[1758181493588,0.6337,4583.0,4582.9,1.71655212]
[1758181493792,0.6337,4583.0,4582.9,1.93555212]
[1758181494198,0.8469,4583.0,4582.9,1.68655212]
[1758181494897,0.8469,4583.0,4582.9,1.93555212]
[1758181497298,0.8469,4583.0,4582.9,1.68655212]
[1758181497991,0.8469,4583.0,4582.9,1.47695212]
[1758181498301,0.8469,4583.0,4582.9,1.26975212]
[1758181498496,1.35466471,4583.0,4582.9,0.219]
[1758181499500,1.35466471,4583.0,4582.6,0.219]
[1758181499798,0.7103,4582.7,4582.6,0.4306]
[1758181500195,0.7103,4582.7,4582.6,0.219]
[1758181500491,0.1243,4583.0,4582.5,1.05075212]
[1758181500492,0.3036,4582.6,4582.5,1.05075212]
[1758181500800,0.7103,4582.6,4582.5,1.05075212]
[1758181500999,0.4067,4581.8,4581.7,3.2078]
[1758181501194,0.7103,4581.8,4581.7,3.4194]
[1758181502400,0.5138,4581.8,4581.7,3.8737]
[1758181502589,0.3036,4581.8,4581.7,3.8737]
[1758181502791,0.7328,4582.9,4582.8,0.2116]
[1758181503105,1.43683443,4582.9,4582.8,1.46755212]
[1758181503405,1.21783443,4582.9,4582.8,1.46755212]
[1758181504105,1.21783443,4582.9,4582.5,1.05075212]
[1758181504297,0.7103,4582.6,4582.5,0.2116]
[1758181504602,1.21783443,4582.6,4582.5,0.2116]
[1758181507102,1.21783443,4582.6,4582.3,1.07255212]
[1758181507103,0.6798,4582.4,4582.3,1.07255212]
[1758181507599,0.6798,4582.4,4582.3,1.28165212]
[1758181507806,0.6798,4582.4,4582.3,1.47785212]
[1758181508699,0.6798,4582.4,4582.3,1.72635212]
[1758181509603,0.6798,4582.4,4582.3,1.47785212]
[1758181510005,0.6798,4582.4,4582.3,0.0218]
[1758181510304,1.18705249,4582.4,4582.3,0.0218]
[1758181513510,1.18705249,4582.4,4582.3,0.2309]
[1758181513712,0.79705249,4582.4,4582.3,1.72635212]
[1758181513909,0.2898,4582.8,4582.3,1.47785212]
[1758181514105,0.7052,4582.9,4582.8,0.4053]
[1758181514308,1.2121685,4582.9,4582.8,0.4053]
[1758181514909,0.9931685,4582.9,4582.8,0.4053]
[1758181515206,0.2898,4582.9,4582.8,0.6538]
[1758181515414,0.8988,4583.4,4583.3,0.2091]
[1758181515713,1.40576574,4583.4,4583.3,1.25985212]
[1758181517614,1.18676574,4583.4,4583.3,0.2091]
[1758181519912,1.40576574,4583.4,4583.3,0.2091]
[1758181520115,1.40576574,4583.4,4583.3,1.25985212]
[1758181520510,1.18676574,4583.4,4583.3,1.25985212]
[1758181520717,1.18676574,4583.4,4583.3,1.45605212]
[1758181525114,1.18676574,4583.4,4583.1,0.0218]
[1758181525309,0.6798,4583.2,4583.1,0.0218]
[1758181525618,0.6798,4583.2,4583.1,0.2309]
[1758181526713,0.6798,4583.2,4583.1,0.0218]
[1758181527216,0.6798,4583.2,4583.1,0.2309]
[1758181529622,0.6798,4583.2,4583.1,0.4271]
[1758181530921,0.6798,4583.2,4583.1,1.47785212]
[1758181532220,0.6798,4583.2,4583.1,1.07255212]
[1758181532821,0.6798,4583.2,4583.1,1.28165212]
[1758181533827,0.6798,4583.2,4583.1,1.12873449]
[1758181538425,0.6798,4583.2,4583.1,1.32493449]
[1758181539019,0.6798,4583.2,4583.1,1.57373449]
[1758181541219,0.6798,4583.2,4583.1,0.4271]
[1758181541423,1.18621878,4583.2,4583.1,0.4271]
[1758181541727,2.08405327,4583.2,4583.1,0.0218]
[1758181542319,5.51004328,4583.2,4583.1,0.0218]
[1758181542727,5.29185327,4583.2,4583.1,0.0218]
[1758181543321,5.52502747,4583.2,4583.1,0.0218]
[1758181543925,5.74402747,4583.2,4583.1,0.0218]
[1758181544115,5.51085327,4583.2,4583.1,0.0218]
[1758181544424,5.74399362,4583.2,4583.1,0.0218]
[1758181547727,5.52499362,4583.2,4583.1,0.0218]
[1758181547927,5.74399362,4583.2,4583.1,0.0218]
[1758181550526,5.74399362,4583.2,4582.6,0.89783449]
[1758181550828,0.7325,4582.7,4582.6,0.89783449]
[1758181551029,1.23891878,4582.7,4582.6,0.89783449]
[1758181551526,1.23891878,4582.7,4581.8,0.219]
[1758181551527,0.7325,4582.3,4581.8,0.219]
[1758181551728,0.5428,4582.0,4581.9,1.10693449]
[1758181552227,0.8532,4582.0,4581.9,1.10693449]
[1758181552527,0.8532,4582.0,4581.9,1.31913449]
[1758181552726,0.8532,4582.0,4581.9,1.56793449]
[1758181553725,0.8532,4582.0,4581.9,1.31913449]
[1758181556734,0.8532,4582.0,4581.9,1.56793449]
[1758181557033,0.6426,4582.0,4581.9,0.6701]
[1758181557332,0.6426,4582.0,4581.9,1.56793449]
[1758181565335,0.8441,4582.0,4581.9,1.31913449]
[1758181568842,0.633,4582.0,4581.9,1.56843449]
[1758181569042,0.8387,4582.0,4581.9,1.31913449]
[1758181570641,0.8387,4582.0,4581.9,1.56843449]
[1758181571840,0.1207,4582.5,4582.4,0.2033]
[1758181572048,1.33459705,4582.5,4582.4,0.2033]
[1758181573546,3.2078,4582.9,4582.8,0.3986]
[1758181573547,0.3048,4582.9,4582.8,0.3986]
[1758181573741,0.7072,4582.9,4582.8,4.50423449]
[1758181574045,1.21399748,4582.9,4582.7,0.219]
[1758181574252,1.21399748,4582.8,4582.7,0.219]
[1758181575249,0.7072,4582.8,4582.7,0.219]
[1758181575651,1.60503449,4582.8,4582.7,0.219]
[1758181575855,1.21371742,4582.8,4582.7,1.32013449]
[1758181576353,1.21371742,4582.8,4582.7,1.10113449]
[1758181577550,1.21371742,4582.8,4582.7,1.54573449]
[1758181577752,0.50651742,4582.8,4582.7,1.54573449]
[1758181578053,0.3048,4582.9,4582.8,0.6479]
[1758181578445,0.81021143,4582.9,4582.8,0.6479]
[1758181579050,0.3048,4582.9,4582.8,0.6479]
[1758181579853,0.5015,4582.9,4582.8,0.6479]
[1758181580850,0.7072,4582.9,4582.8,0.3986]
[1758181584461,0.7072,4582.9,4582.8,0.2033]
[1758181586757,0.7072,4582.9,4582.8,0.3986]
[1758181586958,0.3048,4582.8,4582.7,4.10563449]
[1758181587165,0.7072,4582.8,4582.7,4.10563449]
[1758181587361,0.7072,4582.8,4582.7,4.30893449]
[1758181589363,0.7072,4582.8,4582.7,4.50423449]
[1758181590666,0.4024,4582.8,4582.5,0.0218]
[1758181590862,0.4024,4582.6,4582.5,0.0218]
[1758181591067,0.7072,4582.6,4582.5,0.0218]
[1758181591764,1.21225557,4582.6,4582.5,0.0218]
[1758181593167,5.21225557,4582.6,4582.5,0.0218]
[1758181593568,1.21225557,4582.6,4582.5,1.12293449]
[1758181593763,0.7072,4582.6,4582.5,1.72036014]
[1758181593969,0.7072,4582.6,4582.5,0.6697]
[1758181594166,0.5015,4582.6,4582.5,1.72036014]
[1758181595471,0.7072,4582.6,4582.5,1.47106014]
[1758181596270,0.5015,4582.6,4582.5,1.72006014]
[1758181596472,0.3048,4582.6,4582.5,1.72006014]
[1758181596768,0.1259,4583.0,4582.5,1.72006014]
[1758181596971,0.5178,4582.7,4582.6,0.6505]
[1758181597160,1.02295354,4582.7,4582.6,0.6505]
[1758181597365,1.23395354,4582.7,4582.6,0.4015]
[1758181597873,0.2124,4582.3,4582.2,3.8583]
[1758181598068,0.5178,4582.3,4582.2,5.12796014]
[1758181598371,0.3054,4582.3,4582.2,5.12796014]
[1758181600371,0.3054,4582.9,4582.2,4.87896014]
[1758181600671,0.71775197,4582.8,4582.7,0.6505]
[1758181601175,1.02315197,4582.8,4582.7,0.6505]
[1758181603263,0.81075197,4582.8,4582.7,0.6505]
[1758181603470,0.3054,4582.8,4582.7,0.6505]
[1758181603669,0.3054,4582.8,4582.7,3.8583]
[1758181606064,0.5178,4582.8,4582.7,3.8583]
[1758181607780,0.7288,4582.8,4582.7,0.4015]
[1758181608374,1.23418879,4582.8,4582.6,0.219]
[1758181608581,0.7288,4582.8,4582.7,0.2041]
[1758181608881,1.23418426,4582.8,4582.7,0.2041]
[1758181610981,1.23418426,4582.8,4582.7,1.45216014]
[1758181614379,1.23418426,4582.8,4582.6,0.219]
[1758181614575,0.50551634,4582.7,4582.6,0.219]
[1758181614780,1.23431634,4582.7,4582.6,0.219]
[1758181619377,0.3918,4581.8,4581.7,3.407]
[1758181619581,0.3918,4581.8,4581.7,3.626]
[1758181619582,0.6977,4581.8,4581.7,3.626]
[1758181620685,0.6977,4581.8,4581.7,3.407]
[1758181621388,1.20333373,4581.8,4581.7,3.2078]
[1758181621688,0.6977,4581.8,4581.7,3.2078]
[1758181621884,0.6977,4581.8,4581.5,0.2408]
[1758181624388,0.6977,4581.8,4581.5,1.29146014]
[1758181624585,0.3918,4581.8,4581.7,0.1992]
[1758181624988,0.6977,4581.8,4581.7,0.1992]
[1758181625592,0.3118,4581.7,4581.5,1.29146014]
[1758181625887,0.7068,4581.6,4581.5,1.29146014]
[1758181626484,0.7068,4581.6,4581.5,0.2408]
[1758181626687,0.7068,4581.6,4581.5,0.0218]
[1758181628296,1.21158038,4581.6,4581.5,0.0218]
[1758181631403,0.7068,4581.6,4581.5,0.0218]
[1758181632195,1.21101959,4581.6,4581.5,0.0218]
[1758181632594,2.48067973,4581.6,4581.5,0.0218]
[1758181633096,2.26167973,4581.6,4581.5,0.0218]
[1758181633298,1.43001959,4581.6,4581.5,0.0218]
[1758181634497,0.7068,4581.6,4581.5,1.46466014]
[1758181634711,3.5196,4581.8,4581.7,0.6407]
[1758181635295,3.722,4581.8,4581.7,0.6407]
[1758181635701,3.9146,4581.8,4581.7,0.3922]
[1758181638503,0.7068,4581.8,4581.7,0.6407]
[1758181639595,0.7068,4581.8,4581.7,0.1965]
[1758181640302,0.7068,4581.8,4581.7,0.3922]
[1758181641408,0.7068,4581.8,4581.7,0.6407]
[1758181642311,1.0368,4581.8,4581.7,0.6407]
[1758181642907,1.0368,4581.8,4581.7,0.3922]
[1758181643500,1.0368,4581.8,4581.7,0.1965]
[1758181644109,0.725,4581.8,4581.5,1.07246014]
[1758181644310,0.7068,4581.6,4581.5,1.26896014]
[1758181644611,0.7068,4581.6,4581.5,1.24716014]
[1758181646920,0.33,4581.8,4581.0,3.2078]
[1758181646921,0.7068,4581.3,4581.0,3.2078]
[1758181647214,0.7068,4581.1,4581.0,3.2078]
[1758181647409,0.7068,4581.1,4581.0,3.4043]
[1758181647616,0.7068,4581.1,4581.0,4.45496014]
[1758181647911,0.7068,4581.1,4581.0,4.65066014]
[1758181648114,0.7068,4581.1,4581.0,4.89916014]
[1758181650110,0.7068,4581.1,4581.0,4.65066014]
[1758181650408,0.7068,4581.1,4581.0,4.45496014]
[1758181651616,0.7068,4581.1,4581.0,3.4043]
[1758181651808,0.7068,4581.1,4581.0,0.1965]
[1758181652014,0.5159,4581.0,4580.8,0.0218]
[1758181652209,0.8277,4581.0,4580.8,0.0218]
[1758181653818,1.726573,4581.0,4580.8,0.0218]
[1758181654520,2.23430519,4581.0,4580.8,0.0218]
[1758181655917,7.35147819,4581.0,4580.8,0.0218]
[1758181656112,7.35147819,4581.0,4579.8,3.407]
[1758181656113,0.4035,4579.9,4579.8,3.407]
[1758181656317,0.7105,4579.9,4579.8,4.305873]
[1758181657512,0.7105,4579.9,4579.8,3.407]
[1758181658118,0.7105,4579.9,4579.8,0.1992]
[1758181661812,0.307,4579.8,4579.5,0.898873]
[1758181662019,0.7105,4579.6,4579.5,1.098073]
[1758181662425,1.609373,4579.6,4579.5,0.1992]
[1758181663121,1.609373,4579.6,4579.3,4.106673]
[1758181663318,0.7105,4579.4,4579.3,4.305873]
[1758181663915,1.609373,4579.4,4579.3,3.2078]
[1758181664121,1.609373,4579.4,4579.3,0.1992]
[1758181667130,1.302373,4579.4,4579.1,0.898873]
[1758181667331,0.7105,4579.2,4579.1,1.098073]
[1758181667527,0.5259,4579.0,4578.9,1.119873]
[1758181667830,0.8329,4579.0,4578.9,1.098073]
[1758181669420,0.8329,4579.0,4578.9,1.295473]
[1758181669628,0.8329,4579.0,4578.9,1.566373]
[1758181671531,1.731773,4579.0,4578.9,0.1992]
[1758181672921,1.731773,4579.0,4578.7,0.219]
[1758181673119,1.609373,4578.8,4578.7,0.4182]
[1758181675534,0.7105,4578.8,4578.7,1.317073]
[1758181677634,0.7105,4578.8,4578.7,1.785373]
[1758181678134,0.7105,4578.8,4578.7,0.8865]
[1758181678336,0.7105,4578.8,4578.7,1.785373]
[1758181678632,0.307,4578.8,4578.7,1.785373]
[1758181678829,0.1224,4579.0,4578.7,1.785373]
[1758181678830,0.307,4578.9,4578.8,0.6675]
[1758181679024,0.5083,4578.9,4578.8,0.6675]
[1758181680038,0.7105,4578.9,4578.8,0.6675]
[1758181680337,0.7105,4578.9,4578.8,0.3966]
[1758181681233,0.7105,4578.9,4578.8,0.1992]
[1758181681831,0.7105,4578.9,4578.7,1.117873]
[1758181682036,0.716,4578.8,4578.7,1.117873]
[1758181682236,0.716,4578.8,4578.7,1.096573]
[1758181684438,0.716,4578.8,4578.7,0.1977]
[1758181684942,0.4103,4578.8,4578.6,0.898873]
[1758181685143,0.3057,4578.7,4578.6,0.898873]
[1758181685442,0.7227,4578.7,4578.5,0.219]
[1758181687633,0.7227,4578.7,4578.6,1.102773]
[1758181690842,0.7227,4578.7,4578.6,1.314873]
[1758181691049,0.7227,4578.7,4578.6,1.585873]
[1758181693139,0.5168,4579.4,4579.3,0.416]
[1758181693344,0.5168,4579.4,4579.3,1.585873]
[1758181693345,1.02709382,4579.4,4579.3,1.585873]
[1758181694250,0.5168,4579.4,4579.3,1.585873]
[1758181694842,1.02710439,4579.4,4579.3,1.585873]
[1758181695243,1.24030439,4579.4,4579.3,1.314873]
[1758181695443,0.73,4579.4,4579.3,1.314873]
[1758181696744,0.73,4579.4,4579.3,1.585873]
[1758181697754,0.73,4579.4,4579.3,1.314873]
[1758181698156,0.73,4579.4,4579.3,1.585873]
[1758181698356,0.5168,4579.4,4579.3,1.585873]
[1758181699958,0.313,4579.9,4579.3,1.314873]
[1758181700162,1.0269018,4579.8,4579.7,0.687]
[1758181700452,1.2401018,4579.8,4579.7,0.416]
[1758181700655,1.0269018,4579.8,4579.7,0.687]
[1758181701251,0.5168,4579.8,4579.7,1.585873]
[1758181701953,0.5168,4579.8,4579.7,0.687]
[1758181702154,0.5168,4579.8,4579.7,1.585873]
[1758181703150,3.2078,4580.7,4579.9,0.416]
[1758181703348,1.0264357,4580.4,4580.3,0.687]
[1758181704258,0.5168,4580.4,4580.3,0.687]
[1758181704449,0.5168,4580.4,4580.3,1.585873]
[1758181705556,0.73,4580.4,4580.3,1.585873]
[1758181705755,0.73,4580.4,4580.3,1.314873]
[1758181709559,0.73,4580.4,4580.3,1.585873]
[1758181709771,0.5168,4580.4,4580.3,1.585873]
[1758181709949,0.1274,4581.0,4580.3,0.687]
[1758181710256,0.73,4580.9,4580.8,0.416]
[1758181711359,0.73,4580.9,4580.8,1.314873]
[1758181712956,0.313,4580.9,4580.8,2.484746]
[1758181713154,0.1274,4582.0,4581.1,0.687]
[1758181713155,0.313,4581.2,4581.1,0.687]
[1758181713458,0.5168,4581.2,4581.1,0.687]
[1758181715063,0.73,4581.2,4581.1,0.416]
[1758181715560,0.73,4581.2,4581.1,0.2039]
[1758181716458,0.73,4581.2,4581.1,0.6677]
[1758181716663,0.313,4581.2,4581.1,0.6677]
[1758181717952,0.1274,4581.5,4581.2,0.2701]
[1758181718159,0.2967,4581.6,4581.5,0.6711]
[1758181718358,0.2967,4581.6,4581.5,0.8901]
[1758181719360,0.5021,4581.6,4581.5,0.8901]
[1758181721165,0.7033,4581.6,4581.5,0.8901]
[1758181722762,0.5021,4581.6,4581.5,0.8901]
[1758181729075,0.6267,4581.8,4581.7,0.6711]
[1758181729267,0.6267,4581.8,4581.7,4.93033121]
[1758181729871,0.8321,4581.8,4581.7,4.93033121]
[1758181731478,0.6267,4581.8,4581.7,4.93033121]
[1758181732076,0.6267,4581.8,4581.7,5.14933121]
[1758181733580,0.33,4581.8,4581.7,5.14933121]
[1758181733977,0.6267,4581.8,4581.7,5.14933121]
[1758181735882,0.33,4581.8,4581.7,5.14933121]
[1758181736781,0.6267,4581.8,4581.7,5.14933121]
[1758181738079,0.33,4581.8,4581.7,5.14933121]
[1758181738480,0.33,4581.8,4581.7,9.14933121]
[1758181741591,0.32672385,4581.8,4581.7,9.14933121]
[1758181741892,0.32672385,4581.8,4581.7,6.20076242]
[1758181742091,0.32672385,4581.8,4581.7,5.14933121]
[1758181742489,0.32672385,4581.8,4581.7,6.20076242]
[1758181742689,0.32672385,4581.8,4581.7,5.14933121]
[1758181746694,0.32672385,4581.8,4581.7,7.09550002]
[1758181749691,0.32672385,4581.8,4581.7,7.48821002]
[1758181749886,0.32672385,4581.8,4581.7,7.09550002]
[1758181750086,0.32672385,4581.8,4581.7,5.54204121]
[1758181751494,0.32672385,4581.8,4581.7,6.59347242]
[1758181751694,0.2983,4582.5,4582.4,0.196]
[1758181751888,0.2983,4582.5,4582.4,6.20826242]
[1758181753101,0.5025,4582.5,4582.4,6.20826242]
[1758181753300,0.2983,4582.5,4582.4,6.20826242]
[1758181754002,0.5025,4582.5,4582.4,6.20826242]
[1758181754203,0.6288,4582.5,4582.4,5.15683121]
[1758181754404,0.8237,4582.5,4582.4,4.88603121]
[1758181754701,0.8237,4582.5,4582.4,5.93746242]
[1758181755198,0.8237,4582.5,4582.4,6.20826242]
[1758181758408,0.8237,4582.5,4582.4,4.88603121]
[1758181758809,0.8237,4582.5,4582.4,6.20826242]
[1758181759002,0.8237,4582.5,4582.4,5.15683121]
[1758181760408,0.8237,4582.5,4582.4,4.88603121]
[1758181760910,0.8248,4583.0,4582.9,0.196]
[1758181761105,0.8248,4583.0,4582.9,1.46643121]
[1758181773820,0.4257,4583.0,4582.9,1.94903121]
[1758181774323,0.6299,4583.0,4582.9,1.94903121]
[1758181777420,3.2078,4583.7,4582.9,4.88603121]
[1758181777421,0.288,4583.4,4582.9,4.88603121]
[1758181777621,0.803,4583.5,4583.4,0.4169]
[1758181777822,0.803,4583.5,4583.4,1.3144443]
[1758181780116,0.5201,4584.5,4584.4,0.4169]
[1758181780318,0.1226,4585.5,4584.6,0.2945]
[1758181780514,0.1951,4584.7,4584.6,0.7114]
[1758181780827,0.3938,4584.7,4584.6,1.6089443]
[1758181782124,0.6818,4584.7,4584.6,1.6089443]
[1758181791927,0.4831,4585.5,4585.4,0.4169]
[1758181792228,0.6818,4585.5,4585.4,1.6089443]
[1758181792428,0.288,4585.4,4585.1,3.4268]
[1758181792627,0.6818,4585.2,4585.1,0.219]
[1758181792835,0.5164,4585.0,4584.9,0.8975443]
[1758181793025,0.8044,4585.0,4584.6,3.2078]
[1758181793226,0.6818,4584.7,4584.6,3.4278]
[1758181793437,0.6818,4584.7,4584.6,4.3253443]
[1758181793937,0.6818,4584.7,4584.6,4.5308443]
[1758181794326,0.6818,4584.7,4584.6,4.8253443]
[1758181797038,0.6818,4584.7,4584.6,5.0367443]
[1758181797635,0.6818,4584.7,4584.6,1.8289443]
[1758181797831,0.6818,4584.7,4584.6,1.6089443]
[1758181799132,0.1226,4585.5,4584.7,0.295]
[1758181799133,0.2953,4585.5,4584.7,0.295]
[1758181799328,0.835,4585.5,4585.4,0.8975443]
[1758181799538,0.835,4585.5,4584.8,0.22]
[1758181799539,0.7167,4585.4,4585.3,0.8975443]
[1758181799837,0.7167,4585.4,4585.3,1.5909443]
[1758181800741,0.4214,4585.1,4585.0,0.8975443]
[1758181801032,0.7167,4585.1,4585.0,0.8975443]
[1758181801238,0.7167,4585.1,4585.0,1.0929443]
[1758181801441,0.7167,4585.1,4585.0,1.3879443]
[1758181801937,0.7167,4585.1,4585.0,0.1954]
[1758181802132,0.7167,4585.1,4585.0,1.0929443]
[1758181802332,0.7167,4585.1,4585.0,1.3879443]
[1758181804641,0.7167,4585.1,4585.0,1.0929443]
[1758181805039,0.7167,4585.1,4585.0,0.8975443]
[1758181805733,0.7167,4585.1,4584.6,3.2078]
[1758181805734,0.7251,4584.7,4584.6,4.6109443]
[1758181806638,0.7251,4584.7,4584.6,4.8062443]
[1758181807232,0.5119,4584.7,4584.6,4.8062443]
[1758181807842,0.7251,4584.7,4584.6,4.8062443]
[1758181810141,0.7251,4584.7,4584.6,1.5984443]
[1758181810641,0.8463,4584.5,4584.4,0.0218]
[1758181810941,0.8463,4584.5,4584.4,1.4249443]
[1758181811340,0.8463,4584.5,4584.4,0.0218]
[1758181811542,4.8463,4584.5,4584.4,0.0218]
[1758181811838,0.3085,4584.8,4584.5,0.1225]
[1758181812039,0.3085,4584.8,4584.4,0.9193443]
[1758181812040,0.7251,4584.8,4584.7,1.5984443]
[1758181812236,0.9461,4584.8,4584.7,1.5984443]
[1758181812831,1.8436443,4584.8,4584.7,0.5056]
[1758181813031,0.1212,4584.5,4584.4,1.2270443]
[1758181813238,0.8463,4584.5,4584.4,1.4249443]
[1758181814942,1.7438443,4584.5,4584.4,0.0218]
[1758181815342,5.7438443,4584.5,4584.4,0.0218]
[1758181815736,9.45901166,4584.5,4584.4,0.0218]
[1758181817245,8.9516443,4584.5,4584.4,0.0218]
[1758181818833,9.1726443,4584.5,4584.4,0.0218]
[1758181820653,8.2751,4584.5,4584.4,0.0218]
[1758181820950,9.1726443,4584.5,4584.4,0.0218]
[1758181822054,9.1726443,4584.5,4584.1,0.3077]
[1758181822258,1.6226443,4584.2,4584.1,0.3077]
[1758181822453,1.8436443,4584.2,4584.1,0.5056]
[1758181823556,0.7251,4583.6,4583.5,4.6109443]
[1758181823754,0.9461,4583.6,4583.5,4.8062443]
[1758181825955,0.2034,4583.6,4583.5,4.9287443]
[1758181826164,0.221,4583.6,4583.5,4.9287443]
[1758181830663,0.9461,4583.6,4583.5,4.8062443]
[1758181830862,1.8436443,4583.6,4583.5,0.7009]
[1758181831065,0.7251,4583.4,4583.3,0.0218]
[1758181831258,1.6226443,4583.4,4583.3,0.0218]
[1758181832571,5.6226443,4583.4,4583.3,0.0218]
[1758181832768,5.6226443,4583.4,4582.6,0.3077]
[1758181832966,1.6226443,4582.7,4582.3,0.3077]
[1758181833167,0.9461,4582.6,4582.5,0.5056]
[1758181833666,0.9461,4582.6,4582.5,0.7009]
[1758181837767,0.1158,4582.5,4582.1,0.2939]
[1758181837975,1.6127443,4582.2,4582.1,0.6991]
[1758181838168,1.6127443,4582.2,4582.1,0.4052]
[1758181838169,1.8337443,4582.2,4582.1,0.4052]
[1758181839374,1.8337443,4582.2,4581.6,0.0218]
[1758181839571,0.7152,4581.8,4581.7,1.5966443]
[1758181839772,0.9362,4581.8,4581.7,0.6991]
[1758181840363,0.5093,4581.8,4581.7,0.6991]
[1758181840574,0.221,4581.8,4581.7,0.6991]
[1758181844278,0.5275,4581.8,4581.7,0.6991]
[1758181845981,0.3065,4581.8,4581.7,0.6991]
[1758181846278,0.5093,4582.4,4582.3,0.4052]
[1758181846473,0.7303,4582.4,4582.3,0.6991]
[1758181846973,0.9362,4582.4,4582.3,0.6991]
[1758181847172,0.5093,4582.4,4582.3,0.6991]
[1758181847374,0.221,4582.4,4582.3,0.6991]
[1758181847673,0.5275,4582.4,4582.3,0.6991]
[1758181848475,0.221,4582.4,4582.3,0.6991]
[1758181849879,3.2078,4582.5,4582.4,0.2939]
[1758181850076,3.4288,4582.5,4582.4,1.75028048]
[1758181850781,4.144,4582.5,4582.4,1.75028048]
[1758181851173,3.923,4582.5,4582.4,1.75028048]
[1758181851375,4.144,4582.5,4582.4,1.75028048]
[1758181851976,4.2598,4582.5,4582.1,0.2939]
[1758181852277,0.2028,4582.2,4582.1,0.4994]
[1758181852476,0.9362,4582.2,4582.1,0.4994]
[1758181854680,0.7152,4582.2,4582.1,1.75028048]
[1758181854888,0.9362,4582.2,4582.1,1.75028048]
[1758181855179,3.2078,4582.5,4582.1,1.75028048]
[1758181855387,3.2078,4582.5,4582.4,1.75028048]
[1758181855685,0.221,4582.5,4582.4,1.75028048]
[1758181857378,0.5093,4582.9,4582.8,0.4994]
[1758181857687,0.7303,4582.9,4582.8,1.75028048]
[1758181857980,0.9362,4582.9,4582.8,1.75028048]
[1758181860486,1.98738048,4582.9,4582.5,0.3014]
[1758181860782,1.98738048,4582.9,4582.2,1.35258048]
[1758181860783,0.2896,4582.8,4582.2,1.35258048]
[1758181861088,0.7031,4582.3,4582.2,1.74508048]
[1758181861279,0.7031,4582.3,4582.2,0.6939]
[1758181862383,0.7031,4582.3,4582.2,1.74508048]
[1758181864190,0.7031,4582.3,4582.2,0.6939]
[1758181864384,0.7031,4582.3,4582.2,0.3925]
[1758181864983,0.7031,4582.3,4581.9,1.05118048]
[1758181864984,0.1276,4582.0,4581.9,0.3014]
[1758181865289,0.8307,4582.0,4581.9,0.4945]
[1758181868488,1.81228048,4582.0,4581.5,3.2078]
[1758181868689,0.4092,4581.6,4581.5,3.6053]
[1758181868886,0.2107,4581.6,4581.5,3.7288]
[1758181869284,0.2107,4581.6,4581.5,4.0342]
[1758181871489,0.3149,4581.8,4581.5,3.7288]
[1758181871792,0.7466,4581.9,4581.8,0.7029]
[1758181872794,0.5256,4581.9,4581.8,0.7029]
[1758181877101,0.3149,4582.4,4581.9,0.3054]
[1758181877397,0.3149,4582.4,4581.7,1.05118048]
[1758181877398,0.9451,4582.6,4582.5,0.7029]
[1758181877997,0.9451,4582.6,4582.5,0.3975]
[1758181878293,0.7241,4582.6,4582.5,0.7029]
[1758181878488,2.184,4585.1,4582.5,0.7029]
[1758181878489,0.5256,4582.9,4582.8,0.3975]
[1758181878688,0.5256,4583.4,4583.3,0.7029]
[1758181878884,3.2078,4583.7,4583.5,0.3975]
[1758181878885,0.5256,4583.6,4583.5,0.3975]
[1758181879089,0.5256,4583.6,4583.5,0.7029]
[1758181881191,0.4092,4583.1,4583.0,0.3975]
[1758181881400,0.7241,4583.1,4583.0,0.7029]
[1758181883194,0.7241,4583.1,4582.6,0.3054]
[1758181883195,0.1254,4583.0,4582.6,0.3054]
[1758181883403,0.3149,4582.6,4582.5,3.2078]
[1758181883598,0.7241,4582.6,4582.5,3.4036]
[1758181883902,0.7241,4582.6,4582.5,3.709]
[1758181884196,0.7241,4582.6,4582.5,3.4036]
[1758181884595,0.7241,4582.6,4582.5,3.709]
[1758181884804,0.3149,4582.8,4582.7,0.3975]
[1758181884993,0.3149,4582.8,4582.7,0.7029]
[1758181885193,0.2107,4582.8,4582.7,1.75408048]
[1758181885404,0.5256,4583.4,4583.3,0.7029]
[1758181885605,0.7466,4583.4,4583.3,0.7029]
[1758181885902,0.7241,4583.4,4583.3,0.7029]
[1758181886200,0.7466,4583.4,4583.3,0.7029]
[1758181886403,0.5256,4583.4,4583.3,0.7029]
[1758181887008,0.2107,4583.4,4583.3,0.7029]
[1758181887801,0.5256,4583.4,4583.3,0.7029]
[1758181888606,0.7241,4583.4,4583.3,0.7029]
[1758181888906,1.77528048,4583.4,4583.3,0.3975]
[1758181889605,1.77528048,4583.4,4582.7,0.3054]
[1758181889811,0.2107,4582.8,4582.7,1.55238048]
[1758181890001,0.5256,4582.8,4582.7,0.7029]
[1758181890198,0.7241,4582.8,4582.7,1.75408048]